[Event "Titled Tuesday Blitz November 29 Early 2022"]
[White "Bilan, Danila"]
[Black "Roque Sola, Gisela"]
[WhiteFideId "24161918"]
[BlackFideId "5120241"]
[WhiteElo "2173"]
[BlackElo "1961"]
[Result "0-1"]
[Round "03"]
[TimeControl "180+1"]
[Date "2022.11.30"]
[WhiteClock "0:00:05"]
[BlackClock "0:00:12"]

1. d4 {[%clk 0:02:59]}  Nf6 {[%clk 0:02:59]} 2. Nf3 {[%clk 0:03:00]}  e6 {[%clk 0:02:57]} 3. g3 {[%clk 0:02:59]}  b6 {[%clk 0:02:56]} 4. Bg2 {[%clk 0:03:00]}  Bb7 {[%clk 0:02:56]} 5. O-O {[%clk 0:03:01]}  Be7 {[%clk 0:02:55]} 6. c4 {[%clk 0:03:01]}  O-O {[%clk 0:02:54]} 7. d5 {[%clk 0:03:02]}  exd5 {[%clk 0:02:54]} 8. Nh4 {[%clk 0:03:01]}  c6 {[%clk 0:02:53]} 9. cxd5 {[%clk 0:03:01]}  Nxd5 {[%clk 0:02:52]} 10. Nf5 {[%clk 0:03:01]}  Bf6 {[%clk 0:02:49]} 11. e4 {[%clk 0:02:55]}  Nb4 {[%clk 0:02:38]} 12. Nd6 {[%clk 0:02:38]}  Ba6 {[%clk 0:02:38]} 13. Re1 {[%clk 0:02:37]}  Be5 {[%clk 0:02:28]} 14. Re3 {[%clk 0:02:11]}  Qf6 {[%clk 0:02:17]} 15. a3 {[%clk 0:01:25]}  Nd3 {[%clk 0:01:51]} 16. Rxd3 {[%clk 0:00:50]}  Bxd3 {[%clk 0:01:49]} 17. Qxd3 {[%clk 0:00:50]}  Qxd6 {[%clk 0:01:48]} 18. Qe2 {[%clk 0:00:48]}  a5 {[%clk 0:01:39]} 19. Nc3 {[%clk 0:00:46]}  Bxc3 {[%clk 0:01:38]} 20. bxc3 {[%clk 0:00:45]}  Na6 {[%clk 0:01:39]} 21. Bf4 {[%clk 0:00:39]}  Qe6 {[%clk 0:01:37]} 22. Rd1 {[%clk 0:00:37]}  Nc5 {[%clk 0:01:35]} 23. Rd6 {[%clk 0:00:36]}  Qb3 {[%clk 0:01:15]} 24. Qg4 {[%clk 0:00:35]}  Qb1+ {[%clk 0:01:07]} 25. Bf1 {[%clk 0:00:26]}  Qxe4 {[%clk 0:01:05]} 26. f3 {[%clk 0:00:25]}  Qe7 {[%clk 0:00:37]} 27. Bc4 {[%clk 0:00:22]}  Ne6 {[%clk 0:00:36]} 28. Be5 {[%clk 0:00:21]}  f6 {[%clk 0:00:34]} 29. Bf4 {[%clk 0:00:13]}  Kh8 {[%clk 0:00:28]} 30. h4 {[%clk 0:00:11]}  Nxf4 {[%clk 0:00:27]} 31. Qxf4 {[%clk 0:00:11]}  Qe1+ {[%clk 0:00:25]} 32. Kg2 {[%clk 0:00:11]}  Rae8 {[%clk 0:00:25]} 33. Rxd7 {[%clk 0:00:11]}  Re2+ {[%clk 0:00:23]} 34. Bxe2 {[%clk 0:00:11]}  Qxe2+ {[%clk 0:00:24]} 35. Kh3 {[%clk 0:00:11]}  Qf1+ {[%clk 0:00:24]} 36. Kg4 {[%clk 0:00:11]}  f5+ {[%clk 0:00:23]} 37. Kh5 {[%clk 0:00:10]}  Qe1 {[%clk 0:00:19]} 38. Qd4 {[%clk 0:00:10]}  Qe8+ {[%clk 0:00:18]} 39. Kg5 {[%clk 0:00:10]}  Qg6+ {[%clk 0:00:18]} 40. Kf4 {[%clk 0:00:10]}  Qh6+ {[%clk 0:00:17]} 41. Ke5 {[%clk 0:00:07]}  Re8+ {[%clk 0:00:18]} 42. Kxf5 {[%clk 0:00:05]}  Qg6+ {[%clk 0:00:17]} 43. Kf4 {[%clk 0:00:05]}  Qh6+ {[%clk 0:00:14]} 44. Kg4 {[%clk 0:00:06]}  Qe6+ {[%clk 0:00:14]} 45. Kf4 {[%clk 0:00:05]}  Rf8+ {[%clk 0:00:13]} 46. Kg5 {[%clk 0:00:05]}  Qg6# {[%clk 0:00:12]} 0-1


[Site "https://www.chess.com"]

[Event "Titled Tuesday Blitz November 29 Early 2022"]
[White "Bortnyk, Olexandr"]
[Black "Ohanyan, Emin"]
[WhiteFideId "14120828"]
[BlackFideId "13312022"]
[WhiteElo "2723"]
[BlackElo "2352"]
[Result "0-1"]
[Round "03"]
[TimeControl "180+1"]
[Date "2022.11.30"]
[WhiteClock "0:00:01"]
[BlackClock "0:00:02"]

1. e4 {[%clk 0:02:59]}  e5 {[%clk 0:02:57]} 2. Bc4 {[%clk 0:02:54]}  Ne7 {[%clk 0:02:53]} 3. Qf3 {[%clk 0:02:46]}  f6 {[%clk 0:02:39]} 4. c3 {[%clk 0:02:18]}  c6 {[%clk 0:02:35]} 5. d3 {[%clk 0:02:05]}  d5 {[%clk 0:02:32]} 6. Bb3 {[%clk 0:02:05]}  Be6 {[%clk 0:02:29]} 7. Ne2 {[%clk 0:02:02]}  Nd7 {[%clk 0:02:29]} 8. Be3 {[%clk 0:01:56]}  a5 {[%clk 0:02:07]} 9. Nd2 {[%clk 0:01:38]}  a4 {[%clk 0:02:07]} 10. Bc2 {[%clk 0:01:38]}  Nc8 {[%clk 0:02:02]} 11. d4 {[%clk 0:01:35]}  Nd6 {[%clk 0:01:51]} 12. O-O {[%clk 0:01:16]}  Be7 {[%clk 0:01:42]} 13. Qg3 {[%clk 0:01:10]}  O-O {[%clk 0:01:29]} 14. Bh6 {[%clk 0:00:31]}  Rf7 {[%clk 0:01:24]} 15. f4 {[%clk 0:00:31]}  dxe4 {[%clk 0:01:11]} 16. fxe5 {[%clk 0:00:32]}  Nf5 {[%clk 0:01:01]} 17. Rxf5 {[%clk 0:00:32]}  Bxf5 {[%clk 0:01:02]} 18. Rf1 {[%clk 0:00:32]}  Be6 {[%clk 0:00:28]} 19. Nf4 {[%clk 0:00:32]}  Nf8 {[%clk 0:00:18]} 20. Nxe4 {[%clk 0:00:27]}  f5 {[%clk 0:00:12]} 21. Ng5 {[%clk 0:00:08]}  Bxg5 {[%clk 0:00:08]} 22. Bxg5 {[%clk 0:00:09]}  Qd7 {[%clk 0:00:08]} 23. a3 {[%clk 0:00:05]}  Bc4 {[%clk 0:00:06]} 24. Re1 {[%clk 0:00:05]}  Ne6 {[%clk 0:00:06]} 25. h4 {[%clk 0:00:05]}  Nxf4 {[%clk 0:00:06]} 26. Bxf4 {[%clk 0:00:05]}  Qe6 {[%clk 0:00:06]} 27. h5 {[%clk 0:00:05]}  Kh8 {[%clk 0:00:07]} 28. Qh4 {[%clk 0:00:03]}  Rg8 {[%clk 0:00:06]} 29. Re3 {[%clk 0:00:03]}  g5 {[%clk 0:00:04]} 30. hxg6 {[%clk 0:00:04]}  Rxg6 {[%clk 0:00:04]} 31. g3 {[%clk 0:00:01]}  Bd5 {[%clk 0:00:04]} 32. Kf2 {[%clk 0:00:02]}  Kg7 {[%clk 0:00:03]} 33. Bd1 {[%clk 0:00:02]}  Be4 {[%clk 0:00:02]} 34. Bh5 {[%clk 0:00:02]}  Rf8 {[%clk 0:00:02]} 35. Bxg6 {[%clk 0:00:02]}  Qxg6 {[%clk 0:00:02]} 36. e6 {[%clk 0:00:01]}  Re8 {[%clk 0:00:02]} 37. Be5+ {[%clk 0:00:02]}  Kg8 {[%clk 0:00:02]} 38. e7 {[%clk 0:00:02]}  Kf7 {[%clk 0:00:03]} 39. Bf4 {[%clk 0:00:01]}  Rxe7 {[%clk 0:00:03]} 40. Re2 {[%clk 0:00:02]}  Re6 {[%clk 0:00:04]} 41. c4 {[%clk 0:00:02]}  Re7 {[%clk 0:00:03]} 42. Re3 {[%clk 0:00:02]}  h5 {[%clk 0:00:02]} 43. Be5 {[%clk 0:00:02]}  Qg4 {[%clk 0:00:02]} 44. Qxg4 {[%clk 0:00:02]}  hxg4 {[%clk 0:00:03]} 45. Re2 {[%clk 0:00:03]}  Kg6 {[%clk 0:00:03]} 46. Ke3 {[%clk 0:00:02]}  Rh7 {[%clk 0:00:03]} 47. Rd2 {[%clk 0:00:03]}  Rh1 {[%clk 0:00:03]} 48. d5 {[%clk 0:00:03]}  cxd5 {[%clk 0:00:03]} 49. cxd5 {[%clk 0:00:04]}  Re1+ {[%clk 0:00:03]} 50. Kd4 {[%clk 0:00:05]}  Kf7 {[%clk 0:00:02]} 51. Bf4 {[%clk 0:00:05]}  Ke7 {[%clk 0:00:02]} 52. Kc5 {[%clk 0:00:05]}  Kd7 {[%clk 0:00:02]} 53. Kb5 {[%clk 0:00:05]}  Rc1 {[%clk 0:00:03]} 54. Kxa4 {[%clk 0:00:05]}  Rc5 {[%clk 0:00:03]} 55. d6 {[%clk 0:00:05]}  Rc1 {[%clk 0:00:02]} 56. Rh2 {[%clk 0:00:05]}  Rc4+ {[%clk 0:00:01]} 57. Kb5 {[%clk 0:00:05]}  Bd3 {[%clk 0:00:01]} 58. Rh7+ {[%clk 0:00:05]}  Ke6 {[%clk 0:00:02]} 59. Re7+ {[%clk 0:00:05]}  Kf6 {[%clk 0:00:02]} 60. Kb6 {[%clk 0:00:05]}  Rd4 {[%clk 0:00:01]} 61. Rxb7 {[%clk 0:00:04]}  Rxf4 {[%clk 0:00:01]} 62. gxf4 {[%clk 0:00:03]}  g3 {[%clk 0:00:02]} 63. Rh7 {[%clk 0:00:02]}  g2 {[%clk 0:00:01]} 64. d7 {[%clk 0:00:03]}  g1=Q+ {[%clk 0:00:01]} 65. Kc7 {[%clk 0:00:02]}  Qc5+ {[%clk 0:00:01]} 66. Kb8 {[%clk 0:00:01]}  Qb6+ {[%clk 0:00:02]} 67. Ka8 {[%clk 0:00:01]}  Qd8+ {[%clk 0:00:02]} 0-1


[Site "https://www.chess.com"]

[Event "Titled Tuesday Blitz November 29 Early 2022"]
[White "Cappelletto, Joshuaede"]
[Black "Manon-og, Ramon Jr."]
[WhiteFideId "2824383"]
[BlackFideId "5200776"]
[WhiteElo "2237"]
[BlackElo "2339"]
[Result "1-0"]
[Round "03"]
[TimeControl "180+1"]
[Date "2022.11.30"]
[WhiteClock "0:01:50"]
[BlackClock "0:01:18"]

1. c4 {[%clk 0:03:00]}  Nf6 {[%clk 0:02:58]} 2. Nc3 {[%clk 0:03:00]}  c6 {[%clk 0:02:58]} 3. d4 {[%clk 0:02:58]}  d5 {[%clk 0:02:58]} 4. Nf3 {[%clk 0:02:58]}  g6 {[%clk 0:02:59]} 5. cxd5 {[%clk 0:02:56]}  cxd5 {[%clk 0:02:59]} 6. Bf4 {[%clk 0:02:57]}  Bg7 {[%clk 0:02:59]} 7. e3 {[%clk 0:02:56]}  O-O {[%clk 0:02:59]} 8. Bd3 {[%clk 0:02:53]}  Nc6 {[%clk 0:02:58]} 9. O-O {[%clk 0:02:54]}  Bg4 {[%clk 0:02:55]} 10. h3 {[%clk 0:02:52]}  Bxf3 {[%clk 0:02:55]} 11. Qxf3 {[%clk 0:02:53]}  Qb6 {[%clk 0:02:55]} 12. Rab1 {[%clk 0:02:45]}  Qa5 {[%clk 0:02:47]} 13. a3 {[%clk 0:02:44]}  Rfd8 {[%clk 0:02:46]} 14. Nb5 {[%clk 0:02:41]}  Rac8 {[%clk 0:02:44]} 15. Rfc1 {[%clk 0:02:34]}  a6 {[%clk 0:02:44]} 16. Nc3 {[%clk 0:02:27]}  b5 {[%clk 0:02:41]} 17. Qd1 {[%clk 0:02:00]}  b4 {[%clk 0:02:40]} 18. Na4 {[%clk 0:01:59]}  Ne4 {[%clk 0:02:15]} 19. Nc5 {[%clk 0:01:52]}  Nxc5 {[%clk 0:01:52]} 20. Rxc5 {[%clk 0:01:53]}  Qb6 {[%clk 0:01:51]} 21. Rbc1 {[%clk 0:01:53]}  bxa3 {[%clk 0:01:42]} 22. bxa3 {[%clk 0:01:54]}  e6 {[%clk 0:01:33]} 23. Qa4 {[%clk 0:01:53]}  Na7 {[%clk 0:01:26]} 24. Bc7 {[%clk 0:01:52]}  Rxc7 {[%clk 0:01:22]} 25. Rxc7 {[%clk 0:01:51]}  Nb5 {[%clk 0:01:21]} 26. Bxb5 {[%clk 0:01:50]}  axb5 {[%clk 0:01:22]} 27. Qa7 {[%clk 0:01:49]}  Qxa7 {[%clk 0:01:18]} 28. Rxa7 {[%clk 0:01:50]} 1-0


[Site "https://www.chess.com"]

[Event "Titled Tuesday Blitz November 29 Early 2022"]
[White "Chernobay, Artem"]
[Black "Hovhannisyan, Robert"]
[WhiteFideId "4167406"]
[BlackFideId "13302507"]
[WhiteElo "2473"]
[BlackElo "2570"]
[Result "0-1"]
[Round "03"]
[TimeControl "180+1"]
[Date "2022.11.30"]
[WhiteClock "0:00:06"]
[BlackClock "0:00:17"]

1. e4 {[%clk 0:03:00]}  c6 {[%clk 0:02:56]} 2. d4 {[%clk 0:02:59]}  d5 {[%clk 0:02:56]} 3. Nd2 {[%clk 0:03:00]}  dxe4 {[%clk 0:02:53]} 4. Nxe4 {[%clk 0:03:01]}  Nf6 {[%clk 0:02:54]} 5. Nxf6+ {[%clk 0:03:01]}  exf6 {[%clk 0:02:54]} 6. Be3 {[%clk 0:03:01]}  Bd6 {[%clk 0:02:36]} 7. Bd3 {[%clk 0:03:01]}  Na6 {[%clk 0:02:34]} 8. a3 {[%clk 0:03:00]}  Nc7 {[%clk 0:02:25]} 9. Ne2 {[%clk 0:03:00]}  Nd5 {[%clk 0:02:25]} 10. Bd2 {[%clk 0:02:58]}  O-O {[%clk 0:02:23]} 11. c4 {[%clk 0:02:55]}  Ne7 {[%clk 0:02:23]} 12. O-O {[%clk 0:02:55]}  Bg4 {[%clk 0:02:18]} 13. Qc2 {[%clk 0:02:47]}  Bxe2 {[%clk 0:01:57]} 14. Bxe2 {[%clk 0:02:46]}  Bc7 {[%clk 0:01:57]} 15. Bc3 {[%clk 0:02:39]}  Qd7 {[%clk 0:01:54]} 16. Rad1 {[%clk 0:02:36]}  Ng6 {[%clk 0:01:52]} 17. Rfe1 {[%clk 0:02:17]}  Rfe8 {[%clk 0:01:52]} 18. Bf1 {[%clk 0:02:12]}  Nf4 {[%clk 0:01:47]} 19. h3 {[%clk 0:01:44]}  Rxe1 {[%clk 0:01:39]} 20. Rxe1 {[%clk 0:01:43]}  Re8 {[%clk 0:01:32]} 21. Rxe8+ {[%clk 0:01:39]}  Qxe8 {[%clk 0:01:33]} 22. g3 {[%clk 0:01:38]}  Ne6 {[%clk 0:01:30]} 23. d5 {[%clk 0:01:24]}  Nf8 {[%clk 0:01:03]} 24. Bg2 {[%clk 0:01:19]}  c5 {[%clk 0:01:03]} 25. b4 {[%clk 0:01:18]}  Bd6 {[%clk 0:01:01]} 26. Qe4 {[%clk 0:00:41]}  Qc8 {[%clk 0:00:52]} 27. h4 {[%clk 0:00:36]}  Qc7 {[%clk 0:00:36]} 28. Kh2 {[%clk 0:00:33]}  b6 {[%clk 0:00:35]} 29. h5 {[%clk 0:00:31]}  Be5 {[%clk 0:00:27]} 30. Bxe5 {[%clk 0:00:21]}  fxe5 {[%clk 0:00:24]} 31. f4 {[%clk 0:00:16]}  Nd7 {[%clk 0:00:19]} 32. Bh3 {[%clk 0:00:14]}  exf4 {[%clk 0:00:16]} 33. gxf4 {[%clk 0:00:10]}  Nf6 {[%clk 0:00:14]} 34. Qe5 {[%clk 0:00:09]}  Qxe5 {[%clk 0:00:07]} 35. fxe5 {[%clk 0:00:09]}  Nxh5 {[%clk 0:00:08]} 36. d6 {[%clk 0:00:08]}  Kf8 {[%clk 0:00:08]} 37. Bd7 {[%clk 0:00:08]}  Nf4 {[%clk 0:00:07]} 38. Kg3 {[%clk 0:00:03]}  Nd3 {[%clk 0:00:07]} 39. bxc5 {[%clk 0:00:03]}  bxc5 {[%clk 0:00:08]} 40. Bb5 {[%clk 0:00:03]}  Nxe5 {[%clk 0:00:07]} 41. Kf4 {[%clk 0:00:03]}  f6 {[%clk 0:00:07]} 42. Ke4 {[%clk 0:00:03]}  h5 {[%clk 0:00:06]} 43. Kd5 {[%clk 0:00:02]}  h4 {[%clk 0:00:06]} 44. Ke6 {[%clk 0:00:02]}  h3 {[%clk 0:00:04]} 45. d7 {[%clk 0:00:03]}  Nf7 {[%clk 0:00:04]} 46. Kf5 {[%clk 0:00:02]}  h2 {[%clk 0:00:04]} 47. Bc6 {[%clk 0:00:02]}  Nd8 {[%clk 0:00:04]} 48. Bd5 {[%clk 0:00:02]}  Ke7 {[%clk 0:00:05]} 49. Kg6 {[%clk 0:00:03]}  Kxd7 {[%clk 0:00:05]} 50. Kxg7 {[%clk 0:00:03]}  Ke7 {[%clk 0:00:06]} 51. Kg6 {[%clk 0:00:04]}  Ne6 {[%clk 0:00:06]} 52. Kf5 {[%clk 0:00:04]}  Nd4+ {[%clk 0:00:07]} 53. Kf4 {[%clk 0:00:04]}  Nc2 {[%clk 0:00:07]} 54. Kg3 {[%clk 0:00:04]}  Nxa3 {[%clk 0:00:07]} 55. Kxh2 {[%clk 0:00:04]}  Kd6 {[%clk 0:00:07]} 56. Kg3 {[%clk 0:00:05]}  Ke5 {[%clk 0:00:08]} 57. Kf3 {[%clk 0:00:05]}  Kd4 {[%clk 0:00:09]} 58. Kf4 {[%clk 0:00:06]}  Nxc4 {[%clk 0:00:09]} 59. Bg8 {[%clk 0:00:06]}  Nd6 {[%clk 0:00:10]} 60. Kf3 {[%clk 0:00:05]}  a5 {[%clk 0:00:11]} 61. Ke2 {[%clk 0:00:06]}  c4 {[%clk 0:00:11]} 62. Kd2 {[%clk 0:00:06]}  c3+ {[%clk 0:00:12]} 63. Kc2 {[%clk 0:00:06]}  f5 {[%clk 0:00:13]} 64. Kb3 {[%clk 0:00:06]}  f4 {[%clk 0:00:14]} 65. Be6 {[%clk 0:00:06]}  Ne4 {[%clk 0:00:14]} 66. Ka4 {[%clk 0:00:06]}  Nc5+ {[%clk 0:00:15]} 67. Ka3 {[%clk 0:00:06]}  Nxe6 {[%clk 0:00:16]} 68. Ka2 {[%clk 0:00:06]}  f3 {[%clk 0:00:17]} 0-1


[Site "https://www.chess.com"]

[Event "Titled Tuesday Blitz November 29 Early 2022"]
[White "Csonka, Balazs"]
[Black "Ibarra Jerez, Jose Carlos"]
[WhiteFideId "742910"]
[BlackFideId "2226332"]
[WhiteElo "2404"]
[BlackElo "2638"]
[Result "1-0"]
[Round "03"]
[TimeControl "180+1"]
[Date "2022.11.30"]
[WhiteClock "0:00:22"]
[BlackClock "0:01:13"]

1. d4 {[%clk 0:03:00]}  Nf6 {[%clk 0:02:59]} 2. c4 {[%clk 0:03:00]}  d6 {[%clk 0:02:59]} 3. Nc3 {[%clk 0:02:55]}  e5 {[%clk 0:02:59]} 4. Nf3 {[%clk 0:02:54]}  e4 {[%clk 0:02:59]} 5. Nd2 {[%clk 0:02:52]}  Qe7 {[%clk 0:03:00]} 6. Nb3 {[%clk 0:02:51]}  h6 {[%clk 0:02:57]} 7. g3 {[%clk 0:02:48]}  c6 {[%clk 0:02:54]} 8. Bg2 {[%clk 0:02:29]}  Bf5 {[%clk 0:02:53]} 9. O-O {[%clk 0:02:15]}  g6 {[%clk 0:02:51]} 10. f3 {[%clk 0:02:08]}  Bg7 {[%clk 0:02:17]} 11. g4 {[%clk 0:02:02]}  Bc8 {[%clk 0:02:14]} 12. g5 {[%clk 0:01:41]}  hxg5 {[%clk 0:02:13]} 13. Bxg5 {[%clk 0:01:42]}  exf3 {[%clk 0:02:09]} 14. Rxf3 {[%clk 0:01:43]}  Nbd7 {[%clk 0:02:03]} 15. Re3 {[%clk 0:01:33]}  Ne5 {[%clk 0:01:28]} 16. dxe5 {[%clk 0:01:34]}  dxe5 {[%clk 0:01:27]} 17. Ne4 {[%clk 0:01:25]}  Bf5 {[%clk 0:01:25]} 18. Nxf6+ {[%clk 0:01:01]}  Bxf6 {[%clk 0:01:26]} 19. Bxf6 {[%clk 0:01:01]}  Qxf6 {[%clk 0:01:27]} 20. Qd4 {[%clk 0:01:00]}  Be6 {[%clk 0:01:21]} 21. Qxe5 {[%clk 0:00:55]}  Qh4 {[%clk 0:01:18]} 22. Rh3 {[%clk 0:00:38]}  Qxh3 {[%clk 0:01:18]} 23. Bxh3 {[%clk 0:00:38]}  Rxh3 {[%clk 0:01:19]} 24. Nc5 {[%clk 0:00:33]}  Rh5 {[%clk 0:01:19]} 25. Qe3 {[%clk 0:00:31]}  O-O-O {[%clk 0:01:16]} 26. Nxe6 {[%clk 0:00:28]}  Re8 {[%clk 0:01:17]} 27. Rd1 {[%clk 0:00:25]}  Rxe6 {[%clk 0:01:17]} 28. Qd4 {[%clk 0:00:24]}  Kc7 {[%clk 0:01:13]} 29. Qd8# {[%clk 0:00:22]} 1-0


[Site "https://www.chess.com"]

[Event "Titled Tuesday Blitz November 29 Early 2022"]
[White "D`Arruda, Ricardo D."]
[Black "Nugumanov, Bakhtiyar"]
[WhiteFideId "100692"]
[BlackFideId "13701797"]
[WhiteElo "2463"]
[BlackElo "2287"]
[Result "1-0"]
[Round "03"]
[TimeControl "180+1"]
[Date "2022.11.30"]
[WhiteClock "0:00:20"]
[BlackClock "0:00:02"]

1. d4 {[%clk 0:02:49]}  d5 {[%clk 0:02:59]} 2. Nf3 {[%clk 0:02:49]}  e6 {[%clk 0:02:58]} 3. g3 {[%clk 0:02:47]}  Nf6 {[%clk 0:02:57]} 4. Bg2 {[%clk 0:02:47]}  Be7 {[%clk 0:02:58]} 5. O-O {[%clk 0:02:47]}  O-O {[%clk 0:02:59]} 6. c4 {[%clk 0:02:47]}  dxc4 {[%clk 0:02:59]} 7. Qc2 {[%clk 0:02:47]}  a6 {[%clk 0:02:59]} 8. Rd1 {[%clk 0:02:44]}  b5 {[%clk 0:02:25]} 9. a4 {[%clk 0:02:41]}  Bb7 {[%clk 0:02:15]} 10. Nc3 {[%clk 0:02:38]}  Nc6 {[%clk 0:01:35]} 11. axb5 {[%clk 0:02:35]}  Nb4 {[%clk 0:01:35]} 12. Qb1 {[%clk 0:02:32]}  axb5 {[%clk 0:01:34]} 13. Rxa8 {[%clk 0:02:27]}  Qxa8 {[%clk 0:01:35]} 14. Bf4 {[%clk 0:02:12]}  c6 {[%clk 0:01:25]} 15. Ne5 {[%clk 0:02:06]}  Nbd5 {[%clk 0:01:19]} 16. e4 {[%clk 0:02:01]}  Nxf4 {[%clk 0:01:13]} 17. gxf4 {[%clk 0:01:55]}  Rd8 {[%clk 0:01:12]} 18. f5 {[%clk 0:01:35]}  exf5 {[%clk 0:00:53]} 19. exf5 {[%clk 0:01:36]}  b4 {[%clk 0:00:44]} 20. Ne4 {[%clk 0:01:32]}  Qa6 {[%clk 0:00:33]} 21. Ng5 {[%clk 0:01:25]}  Rf8 {[%clk 0:00:26]} 22. Qc2 {[%clk 0:01:17]}  c5 {[%clk 0:00:22]} 23. Qxc4 {[%clk 0:01:10]}  Qxc4 {[%clk 0:00:21]} 24. Nxc4 {[%clk 0:01:11]}  Bxg2 {[%clk 0:00:22]} 25. Kxg2 {[%clk 0:01:12]}  cxd4 {[%clk 0:00:22]} 26. Rxd4 {[%clk 0:01:11]}  Bc5 {[%clk 0:00:23]} 27. Rd2 {[%clk 0:01:06]}  h6 {[%clk 0:00:24]} 28. Nf3 {[%clk 0:01:06]}  Rc8 {[%clk 0:00:24]} 29. Nce5 {[%clk 0:01:05]}  Ne4 {[%clk 0:00:23]} 30. Rc2 {[%clk 0:01:05]}  b3 {[%clk 0:00:23]} 31. Re2 {[%clk 0:01:04]}  Nxf2 {[%clk 0:00:18]} 32. Rd2 {[%clk 0:00:51]}  Ne4 {[%clk 0:00:17]} 33. Rd3 {[%clk 0:00:50]}  Rb8 {[%clk 0:00:14]} 34. Nc6 {[%clk 0:00:50]}  Rb6 {[%clk 0:00:14]} 35. Na5 {[%clk 0:00:49]}  Nd6 {[%clk 0:00:07]} 36. Nxb3 {[%clk 0:00:44]}  Bb4 {[%clk 0:00:07]} 37. Nfd4 {[%clk 0:00:42]}  Nc4 {[%clk 0:00:07]} 38. Nf3 {[%clk 0:00:23]}  Nxb2 {[%clk 0:00:07]} 39. Rd8+ {[%clk 0:00:23]}  Kh7 {[%clk 0:00:08]} 40. Rd7 {[%clk 0:00:24]}  Rf6 {[%clk 0:00:04]} 41. Nbd4 {[%clk 0:00:24]}  Nc4 {[%clk 0:00:02]} 42. Rc7 {[%clk 0:00:22]}  Nd6 {[%clk 0:00:02]} 43. Rc6 {[%clk 0:00:20]} 1-0


[Site "https://www.chess.com"]

[Event "Titled Tuesday Blitz November 29 Early 2022"]
[White "De Souza, Cristiano Gomes"]
[Black "Le Ruyet, Leopold"]
[WhiteFideId "2151758"]
[BlackFideId "645923"]
[WhiteElo "2068"]
[BlackElo "2276"]
[Result "0-1"]
[Round "03"]
[TimeControl "180+1"]
[Date "2022.11.30"]
[WhiteClock "0:00:23"]
[BlackClock "0:00:43"]

1. d4 {[%clk 0:03:00]}  Nf6 {[%clk 0:02:59]} 2. c4 {[%clk 0:02:59]}  g6 {[%clk 0:03:00]} 3. Nc3 {[%clk 0:02:58]}  d5 {[%clk 0:03:00]} 4. Bf4 {[%clk 0:02:57]}  Bg7 {[%clk 0:02:41]} 5. e3 {[%clk 0:02:56]}  O-O {[%clk 0:02:41]} 6. Nf3 {[%clk 0:02:55]}  c5 {[%clk 0:02:37]} 7. dxc5 {[%clk 0:02:55]}  Ne4 {[%clk 0:02:30]} 8. Rc1 {[%clk 0:02:53]}  Nd7 {[%clk 0:02:25]} 9. cxd5 {[%clk 0:02:51]}  Qa5 {[%clk 0:02:24]} 10. Be2 {[%clk 0:02:40]}  Nxc3 {[%clk 0:02:12]} 11. bxc3 {[%clk 0:02:23]}  Nxc5 {[%clk 0:02:10]} 12. O-O {[%clk 0:02:08]}  Qxa2 {[%clk 0:02:09]} 13. Be5 {[%clk 0:02:03]}  Bxe5 {[%clk 0:02:01]} 14. Nxe5 {[%clk 0:02:02]}  Bf5 {[%clk 0:01:59]} 15. f3 {[%clk 0:01:58]}  Nb3 {[%clk 0:01:51]} 16. Bc4 {[%clk 0:01:49]}  Qd2 {[%clk 0:01:40]} 17. Qxb3 {[%clk 0:01:38]}  Qxe3+ {[%clk 0:01:39]} 18. Kh1 {[%clk 0:01:36]}  Qxe5 {[%clk 0:01:38]} 19. Qxb7 {[%clk 0:01:27]}  Rfb8 {[%clk 0:01:38]} 20. Qa6 {[%clk 0:01:25]}  Rb2 {[%clk 0:01:34]} 21. Rfe1 {[%clk 0:01:17]}  Qf4 {[%clk 0:01:30]} 22. Qc6 {[%clk 0:01:12]}  Rc8 {[%clk 0:01:23]} 23. Qa6 {[%clk 0:00:44]}  Rxc4 {[%clk 0:01:21]} 24. Qxa7 {[%clk 0:00:40]}  Bh3 {[%clk 0:01:14]} 25. Qxe7 {[%clk 0:00:24]}  Bxg2+ {[%clk 0:01:08]} 26. Kg1 {[%clk 0:00:24]}  Bxf3 {[%clk 0:00:55]} 27. Qe8+ {[%clk 0:00:22]}  Kg7 {[%clk 0:00:55]} 28. Qe5+ {[%clk 0:00:23]}  Qxe5 {[%clk 0:00:55]} 29. Rxe5 {[%clk 0:00:23]}  Rg4+ {[%clk 0:00:53]} 30. Kf1 {[%clk 0:00:23]}  Rd2 {[%clk 0:00:43]} 0-1


[Site "https://www.chess.com"]